[Event "Niedersachsen-ch A 2024"]
[Site "Verden Aller"]
[Date "2024.01.06"]
[Round "5.14"]
[White "Bulygin, Anton"]
[Black "Thomas, Jeremy"]
[Result "1-0"]
[ECO "A36"]
[WhiteElo "2040"]
[BlackElo "1893"]
[Annotator "NA RC"]
[PlyCount "53"]
[EventDate "2024.01.01"]
[EventType "swiss"]
[EventCountry "GER"]
[SourceTitle "playchess.com"]
[Source "ChessBase"]
[SourceQuality "1"]
[TimeControl "40/5400+30:1800+30"]

1. e4 {[%emt 0:00:05]} c5 {[%emt 0:00:03]} 2. c4 {[%emt 0:00:19]} Nc6 {[%emt 0:00:05]} 3. Nc3 {[%emt 0:00:19]} g6 {[%emt 0:00:06]} 4. g3 {[%emt 0:00:14]} Bg7 {[%emt 0:00:04]} 5. Bg2 {[%emt 0:00:40]} e6 {[%emt 0:00:35]} 6. Nge2 {[%emt 0:00:42]} Nge7 {[%emt 0:00:08]} 7. d3 {[%emt 0:00:18]} O-O {[%emt 0:00:18]} 8. h4 {[%emt 0:00:17]} d5 {[%emt 0:05:16]} 9. exd5 {[%emt 0:01:20]} exd5 {[%emt 0:00:03]} 10. O-O {[%emt 0:04:19]} dxc4 {[%emt 0:19:30]} 11. dxc4 {[%emt 0:00:12]} Be6 {[%emt 0:04:14]} 12. Nd5 {[%emt 0:06:58]} Bxd5 {[%emt 0:09:08]} 13. cxd5 {[%emt 0:00:10]} Nd4 {[%emt 0:00:22]} 14. Nf4 {[%emt 0:00:51]} Qd6 {[%emt 0:02:01]} 15. Be3 {[%emt 0:04:09]} Rfe8 {[%emt 0:01:39]} 16. Qd3 {[%emt 0:09:11]} Nef5 {[%emt 0:02:45]} 17. Rae1 {[%emt 0:08:03]} Re7 {[%emt 0:02:29]} 18. Bxd4 {[%emt 0:00:47]} Bxd4 {[%emt 0:00:13]} 19. Rxe7 {[%emt 0:01:58]} Nxe7 {[%emt 0:04:11]} 20. b4 {[%emt 0:01:03]} Nf5 {[%emt 0:09:00]} 21. bxc5 {[%emt 0:00:36]} Bxc5 {[%emt 0:00:24]} 22. Qf3 {[%emt 0:04:35]} Rb8 {[%emt 0:06:10]} 23. Rd1 {[%emt 0:08:56]} b5 {[%emt 0:01:09]} 24. Bh3 {[%emt 0:01:08]} Ne7 {[%emt 0:08:35]} 25. Kg2 {[%emt 0:01:56]} a5 {[%emt 0:03:04]} 26. Ne6 {[%emt 0:00:15]} Nxd5 {[%emt 0:20:35]} 27. Rxd5 {[%emt 0:00:51]} 1-0

[Event "Niedersachsen-ch A 2024"]
[Site "Verden Aller"]
[Date "2024.01.06"]
[Round "5.15"]
[White "Martin, Dennis"]
[Black "Lehmkuhl, Stefan"]
[Result "1-0"]
[ECO "D20"]
[WhiteElo "1991"]
[BlackElo "1839"]
[Annotator "NA RC"]
[PlyCount "40"]
[EventDate "2024.01.01"]
[EventType "swiss"]
[EventCountry "GER"]
[SourceTitle "playchess.com"]
[Source "ChessBase"]
[SourceQuality "1"]
[TimeControl "40/5400+30:1800+30"]

1. d4 {[%emt 0:00:01]} d5 {[%emt 0:00:42]} 2. c4 {[%emt 0:00:02]} dxc4 {[%emt 0:00:30]} 3. e4 {[%emt 0:00:02]} c5 {[%emt 0:00:30]} 4. d5 {[%emt 0:00:28]} Nf6 {[%emt 0:00:44]} 5. Nc3 {[%emt 0:00:17]} e6 {[%emt 0:00:46]} 6. Bxc4 {[%emt 0:00:42]} a6 {[%emt 0:01:37]} 7. a4 {[%emt 0:00:13]} Be7 {[%emt 0:01:18]} 8. Bf4 {[%emt 0:02:52]} exd5 {[%emt 0:00:40]} 9. Nxd5 {[%emt 0:00:09]} Nxd5 {[%emt 0:01:14]} 10. Bxd5 {[%emt 0:00:03]} Qa5+ {[%emt 0:02:10]} 11. Bd2 {[%emt 0:01:29]} Qb6 {[%emt 0:01:34]} 12. Bc3 {[%emt 0:00:03]} O-O {[%emt 0:00:25]} 13. a5 {[%emt 0:00:54]} Qg6 {[%emt 0:00:42]} 14. Ne2 {[%emt 0:00:25]} Nc6 {[%emt 0:03:25]} 15. O-O {[%emt 0:01:06]} Nb4 {[%emt 0:04:33]} 16. Nf4 {[%emt 0:02:20]} Qh6 {[%emt 0:01:16]} 17. Nh5 {[%emt 0:00:26]} Nxd5 {[%emt 0:01:40]} 18. Bxg7 {[%emt 0:05:45]} Qg6 {[%emt 0:02:15]} 19. Bxf8 {[%emt 0:00:07]} Bxf8 {[%emt 0:00:50]} 20. Qxd5 {[%emt 0:00:32]} Be6 {[%emt 0:02:40]} 1-0

[Event "Niedersachsen-ch A 2024"]
[Site "Verden Aller"]
[Date "2024.01.06"]
[Round "5.16"]
[White "Buecklers, Martin"]
[Black "Stoy, Ulf"]
[Result "1/2-1/2"]
[ECO "A04"]
[WhiteElo "1877"]
[BlackElo "1985"]
[Annotator "NA RC"]
[PlyCount "43"]
[EventDate "2024.01.01"]
[EventType "swiss"]
[EventCountry "GER"]
[SourceTitle "playchess.com"]
[Source "ChessBase"]
[SourceQuality "1"]
[TimeControl "40/5400+30:1800+30"]

1. e4 {[%emt 0:00:04]} g6 {[%emt 0:02:45]} 2. g3 {[%emt 0:01:03]} Bg7 {[%emt 0:00:12]} 3. Bg2 {[%emt 0:00:05]} e5 {[%emt 0:00:37]} 4. Nf3 {[%emt 0:00:43]} Nc6 {[%emt 0:00:12]} 5. O-O {[%emt 0:00:06]} d6 {[%emt 0:02:35]} 6. d3 {[%emt 0:00:23]} Nge7 {[%emt 0:01:16]} 7. Nc3 {[%emt 0:06:23]} O-O {[%emt 0:01:05]} 8. Nh4 {[%emt 0:06:48]} Be6 {[%emt 0:04:17]} 9. f4 {[%emt 0:10:24]} exf4 {[%emt 0:07:41]} 10. gxf4 {[%emt 0:04:42]} f5 {[%emt 0:00:30]} 11. Nf3 {[%emt 0:00:30]} fxe4 {[%emt 0:16:59]} 12. Ng5 {[%emt 0:03:20]} Qd7 {[%emt 0:00:37]} 13. Nxe6 {[%emt 0:04:52]} Qxe6 {[%emt 0:00:02]} 14. Nxe4 {[%emt 0:05:46]} h6 {[%emt 0:05:52]} 15. c3 {[%emt 0:00:30]} Rae8 {[%emt 0:20:32]} 16. Re1 {[%emt 0:10:14]} Qc8 {[%emt 0:08:13]} 17. Bd2 {[%emt 0:03:16]} Kh7 {[%emt 0:00:47]} 18. Qb3 {[%emt 0:06:31]} b6 {[%emt 0:07:45]} 19. Nf2 {[%emt 0:01:25]} Qf5 {[%emt 0:01:47]} 20. Qe6 {[%emt 0:07:49]} Nd8 {[%emt 0:02:04]} 21. Qc4 {[%emt 0:06:22]} Qc5 {[%emt 0:02:31]} 22. Qxc5 {[%emt 0:00:59]} 1/2-1/2

[Event "Niedersachsen-ch A 2024"]
[Site "Verden Aller"]
[Date "2024.01.06"]
[Round "5.17"]
[White "Monnerjahn, Lukas"]
[Black "Koch, Yannick"]
[Result "0-1"]
[ECO "D35"]
[WhiteElo "1856"]
[BlackElo "1981"]
[Annotator "NA RC"]
[PlyCount "66"]
[EventDate "2024.01.01"]
[EventType "swiss"]
[EventCountry "GER"]
[SourceTitle "playchess.com"]
[Source "ChessBase"]
[SourceQuality "1"]
[TimeControl "40/5400+30:1800+30"]

1. d4 {[%emt 0:00:03]} Nf6 {[%emt 0:00:32]} 2. c4 {[%emt 0:00:07]} e6 {[%emt 0:00:21]} 3. Nf3 {[%emt 0:00:06]} d5 {[%emt 0:00:35]} 4. g3 {[%emt 0:00:06]} Bd6 {[%emt 0:00:42]} 5. Bg2 {[%emt 0:00:45]} O-O {[%emt 1:30:50]} 6. O-O {[%emt 0:01:08]} Nc6 {[%emt 0:00:00]} 7. cxd5 {[%emt 0:09:17]} exd5 {[%emt 0:00:00]} 8. Nc3 {[%emt 0:00:41]} h6 {[%emt 0:00:00]} 9. a3 {[%emt 0:05:51]} Re8 {[%emt 0:00:00]} 10. Bf4 {[%emt 0:11:41]} Bxf4 {[%emt 0:00:00]} 11. gxf4 {[%emt 0:00:01]} Ne7 {[%emt 0:00:00]} 12. Ne5 {[%emt 0:01:20]} Nf5 {[%emt 0:00:00]} 13. e3 {[%emt 0:05:41]} c6 {[%emt 0:00:00]} 14. b4 {[%emt 0:04:06]} Nd6 {[%emt 0:00:00]} 15. a4 {[%emt 0:02:57]} Bf5 {[%emt 0:00:00]} 16. b5 {[%emt 0:07:58]} Rc8 {[%emt 0:00:00]} 17. Qe2 {[%emt 0:07:33]} cxb5 {[%emt 0:00:00]} 18. Nxb5 {[%emt 0:03:26]} a6 {[%emt 0:00:00]} 19. Nxd6 {[%emt 0:02:11]} Qxd6 {[%emt 0:00:00]} 20. Rfc1 {[%emt 0:10:49]} Qb4 {[%emt 0:00:00]} 21. Qa2 {[%emt 0:02:17]} Qa5 {[%emt 0:00:00]} 22. Qb3 {[%emt 0:02:16]} Qd2 {[%emt 0:00:00]} 23. Rd1 {[%emt 0:01:45]} Bc2 {[%emt 0:00:00]} 24. Rxd2 {[%emt 0:06:31]} Bxb3 {[%emt 0:00:00]} 25. a5 {[%emt 0:01:04]} Rc3 {[%emt 0:00:00]} 26. Bh3 {[%emt 0:01:34]} Ne4 {[%emt 0:00:00]} 27. Rb2 {[%emt 0:00:24]} Nd6 {[%emt 0:00:00]} 28. Nd7 {[%emt 0:02:34]} Re7 {[%emt 0:02:32]} 29. Nc5 {[%emt 0:01:53]} Bc4 {[%emt 0:00:46]} 30. Bg4 {[%emt 0:00:52]} Bb5 {[%emt 0:01:38]} 31. Kg2 {[%emt 0:00:48]} Nc4 {[%emt 0:00:32]} 32. Rbb1 {[%emt 0:02:36]} Rc2 {[%emt 0:00:21]} 33. Bf5 {[%emt 0:00:45]} Nxe3+ {[%emt 0:00:30]} 0-1

[Event "Niedersachsen-ch A 2024"]
[Site "Verden Aller"]
[Date "2024.01.06"]
[Round "5.18"]
[White "Kieselbach, Marvin"]
[Black "Harms, Friedjof"]
[Result "0-1"]
[ECO "C65"]
[WhiteElo "1926"]
[BlackElo "1844"]
[Annotator "RC"]
[PlyCount "112"]
[EventDate "2024.01.01"]
[EventType "swiss"]
[EventCountry "GER"]
[SourceTitle "playchess.com"]
[Source "ChessBase"]
[SourceQuality "1"]
[TimeControl "40/5400+30:1800+30"]

1. e4 {[%emt 0:00:29]} e5 {[%emt 0:00:07]} 2. Nf3 {[%emt 0:00:05]} Nc6 {[%emt 0:00:03]} 3. Bb5 {[%emt 0:00:16]} Bc5 {[%emt 0:00:07]} 4. O-O {[%emt 0:00:39]} Nf6 {[%emt 0:00:12]} 5. Nxe5 {[%emt 0:01:04]} Nxe5 {[%emt 0:04:09]} 6. d4 {[%emt 0:00:13]} a6 {[%emt 0:03:50]} 7. Be2 {[%emt 0:04:53]} Nxe4 {[%emt 0:11:58]} 8. dxc5 {[%emt 0:00:27]} Nxc5 {[%emt 0:00:55]} 9. b4 {[%emt 0:00:10]} Ne6 {[%emt 0:01:12]} 10. f4 {[%emt 0:03:35]} Nc6 {[%emt 0:02:03]} 11. f5 {[%emt 0:01:38]} Ned4 {[%emt 0:21:55]} 12. f6 {[%emt 0:01:41]} gxf6 {[%emt 0:10:55]} 13. Bb2 {[%emt 0:02:28]} Nxe2+ {[%emt 0:02:10]} 14. Qxe2+ {[%emt 0:00:13]} Ne5 {[%emt 0:02:19]} 15. Nc3 {[%emt 0:12:18]} d5 {[%emt 0:06:15]} 16. Rxf6 {[%emt 0:02:15]} Qxf6 {[%emt 0:01:52]} 17. Nxd5 {[%emt 0:00:10]} Qd6 {[%emt 0:01:54]} 18. Qxe5+ {[%emt 0:11:30]} Qxe5 {[%emt 0:01:14]} 19. Bxe5 {[%emt 0:00:13]} Be6 {[%emt 0:07:23]} 20. Nxc7+ {[%emt 0:01:03]} Ke7 {[%emt 0:02:10]} 21. Bxh8 {[%emt 0:00:43]} Rxh8 {[%emt 0:00:26]} 22. Nxe6 {[%emt 0:00:15]} Kxe6 {[%emt 0:03:55]} 23. c4 {[%emt 0:00:26]} Rd8 {[%emt 0:01:49]} 24. Re1+ {[%emt 0:00:55]} Kf6 {[%emt 0:00:06]} 25. a3 {[%emt 0:30:14]} Rd3 {[%emt 0:00:54]} 26. Re8 {[%emt 0:01:19]} Rxa3 {[%emt 0:05:38]} 27. Rb8 {[%emt 0:00:10]} Rc3 {[%emt 0:02:49]} 28. Rxb7 {[%emt 0:02:26]} Rxc4 {[%emt 0:00:16]} 29. Rb6+ {[%emt 0:01:26]} Kg5 {[%emt 0:00:58]} 30. Kf2 {[%emt 0:01:13]} Rc2+ {[%emt 0:01:10]} 31. Kf3 {[%emt 0:01:02]} Rc3+ {[%emt 0:00:38]} 32. Ke4 {[%emt 0:00:36]} f5+ {[%emt 0:02:24]} 33. Kd4 {[%emt 0:00:19]} Rc2 {[%emt 0:00:19]} 34. Rb7 {[%emt 0:07:39]} Kf4 {[%emt 0:02:16]} 35. g3+ {[%emt 0:00:25]} Kf3 {[%emt 0:00:24]} 36. Rxh7 {[%emt 0:00:17]} a5 {[%emt 0:00:59]} 37. bxa5 {[%emt 0:05:21]} Ra2 {[%emt 0:00:08]} 38. Ra7 {[%emt 0:01:07]} Rxh2 {[%emt 0:00:13]} 39. Ke5 {[%emt 0:01:57]} Rh5 {[%emt 0:00:16]} 40. Kf6 {[%emt 0:06:13]} Kxg3 {[%emt 0:01:08]} 41. Rg7+ {[%emt 0:04:49]} Kh4 {[%emt 0:11:57]} 42. Rg1 {[%emt 0:06:05]} f4 {[%emt 0:01:08]} 43. Ra1 {[%emt 0:06:38]} f3 {[%emt 0:01:07]} 44. a6 {[%emt 0:01:21]} f2 {[%emt 0:10:34]} 45. Kg6 {[%emt 0:09:13]} Rg5+ {[%emt 0:01:31]} 46. Kh6 {[%emt 0:00:54]} Rg1 {[%emt 0:00:46]} 47. Ra4+ {[%emt 0:00:32]} Kg3 {[%emt 0:01:29]} 48. Ra3+ {[%emt 0:03:46]} Kf4 {[%emt 0:00:08]} 49. a7 {[%emt 0:00:53]} f1=Q {[%emt 0:02:08]} 50. a8=Q {[%emt 0:01:56]} Rh1+ {[%emt 0:00:13]} 51. Kg7 {[%emt 0:00:00]} Qg1+ {[%emt 0:00:31]} 52. Kf7 {[%emt 0:00:00]} Rh7+ {[%emt 0:00:32]} 53. Ke6 {[%emt 0:00:00]} Qe1+ {[%emt 0:01:08]} 54. Kd6 {[%emt 0:00:09]} Qe5+ {[%emt 0:00:29]} 55. Kc6 {[%emt 0:00:09]} Rc7+ {[%emt 0:01:09]} 56. Kb6 {[%emt 0:00:06]} Qc5+ {[%emt 0:00:25]} 0-1

[Event "Niedersachsen-ch A 2024"]
[Site "Verden Aller"]
[Date "2024.01.06"]
[Round "5.19"]
[White "Aden, Dagmar"]
[Black "Reins, Henning"]
[Result "1/2-1/2"]
[ECO "A49"]
[WhiteElo "1766"]
[BlackElo "1950"]
[Annotator "RC"]
[PlyCount "152"]
[EventDate "2024.01.01"]
[EventType "swiss"]
[EventCountry "GER"]
[SourceTitle "playchess.com"]
[Source "ChessBase"]
[SourceQuality "1"]
[TimeControl "40/5400+30:1800+30"]

1. Nf3 {[%emt 0:00:04]} Nf6 {[%emt 0:00:17]} 2. g3 {[%emt 0:00:12]} g6 {[%emt 0:01:27]} 3. Bg2 {[%emt 0:00:07]} Bg7 {[%emt 0:00:08]} 4. d4 {[%emt 0:00:30]} O-O {[%emt 0:00:25]} 5. O-O {[%emt 0:00:12]} c5 {[%emt 0:03:54]} 6. c3 {[%emt 0:01:15]} Qb6 {[%emt 0:07:24]} 7. dxc5 {[%emt 0:01:32]} Qxc5 {[%emt 0:00:20]} 8. Nbd2 {[%emt 0:03:25]} d6 {[%emt 0:03:10]} 9. Re1 {[%emt 0:03:00]} a5 {[%emt 0:06:04]} 10. Nf1 {[%emt 0:02:41]} a4 {[%emt 0:04:38]} 11. a3 {[%emt 0:02:22]} Nc6 {[%emt 0:06:20]} 12. Be3 {[%emt 0:03:57]} Qb5 {[%emt 0:09:42]} 13. Qc1 {[%emt 0:02:11]} e5 {[%emt 0:07:04]} 14. c4 {[%emt 0:02:54]} Qa6 {[%emt 0:01:32]} 15. Rd1 {[%emt 0:01:45]} Na5 {[%emt 0:03:04]} 16. N1d2 {[%emt 0:04:49]} Ng4 {[%emt 0:04:01]} 17. Qc2 {[%emt 0:05:52]} Nxe3 {[%emt 0:03:56]} 18. fxe3 {[%emt 0:00:09]} Qb6 {[%emt 0:04:50]} 19. Qxa4 {[%emt 0:04:35]} Qxe3+ {[%emt 0:00:59]} 20. Kh1 {[%emt 0:03:14]} Be6 {[%emt 0:05:21]} 21. Nf1 {[%emt 0:03:07]} Qxe2 {[%emt 0:02:17]} 22. Qb4 {[%emt 0:03:02]} Nxc4 {[%emt 0:04:02]} 23. b3 {[%emt 0:02:08]} Na5 {[%emt 0:08:03]} 24. Rxd6 {[%emt 0:02:02]} Nxb3 {[%emt 0:03:15]} 25. Re1 {[%emt 0:01:41]} Qa2 {[%emt 0:01:58]} 26. Nxe5 {[%emt 0:01:43]} Rfe8 {[%emt 0:02:38]} 27. Qxb7 {[%emt 0:04:00]} Qxa3 {[%emt 0:02:43]} 28. Rxe6 {[%emt 0:09:32]} fxe6 {[%emt 0:00:00]} 29. Qf7+ {[%emt 0:00:14]} Kh8 {[%emt 0:00:02]} 30. Bxa8 {[%emt 0:00:17]} Qxa8+ {[%emt 0:00:02]} 31. Qf3 {[%emt 0:01:59]} Qxf3+ {[%emt 0:02:39]} 32. Nxf3 {[%emt 0:00:09]} e5 {[%emt 0:01:09]} 33. Ng5 {[%emt 0:02:56]} Nc5 {[%emt 0:00:29]} 34. Ne4 {[%emt 0:01:51]} Nxe4 {[%emt 0:01:03]} 35. Rxe4 {[%emt 0:00:07]} Kg8 {[%emt 0:00:21]} 36. Kg2 {[%emt 0:00:30]} Kf7 {[%emt 0:00:11]} 37. Kf3 {[%emt 0:01:13]} Bh6 {[%emt 0:00:53]} 38. Rh4 {[%emt 0:01:23]} Kg7 {[%emt 0:00:33]} 39. Re4 {[%emt 0:00:43]} Bg5 {[%emt 0:00:55]} 40. h4 {[%emt 0:01:21]} Bc1 {[%emt 0:00:56]} 41. Rc4 {[%emt 0:31:41]} Rf8+ {[%emt 0:04:54]} 42. Ke2 {[%emt 0:00:00]} Bb2 {[%emt 0:02:12]} 43. Nd2 {[%emt 0:00:00]} h5 {[%emt 0:01:12]} 44. Nf3 {[%emt 0:00:00]} Re8 {[%emt 0:01:30]} 45. Ke3 {[%emt 0:00:00]} Kf6 {[%emt 0:00:56]} 46. Ke4 {[%emt 0:00:00]} Re6 {[%emt 0:01:00]} 47. Rc7 {[%emt 0:00:00]} Rb6 {[%emt 0:04:34]} 48. Rc4 {[%emt 0:00:00]} Ba3 {[%emt 0:02:20]} 49. Ra4 {[%emt 0:00:00]} Bc5 {[%emt 0:02:02]} 50. Ng5 {[%emt 0:00:00]} Bf2 {[%emt 0:04:54]} 51. Ra3 {[%emt 0:00:00]} Rb4+ {[%emt 0:01:14]} 52. Kf3 {[%emt 0:00:00]} Be1 {[%emt 0:02:08]} 53. Ne4+ {[%emt 0:00:00]} Kf5 {[%emt 0:02:25]} 54. Nd6+ {[%emt 0:00:00]} Ke6 {[%emt 0:00:26]} 55. Ne4 {[%emt 0:00:00]} Kd5 {[%emt 0:01:20]} 56. Rd3+ {[%emt 0:00:00]} Rd4 {[%emt 0:01:08]} 57. Re3 {[%emt 0:00:00]} Bd2 {[%emt 0:02:32]} 58. Re2 {[%emt 0:00:00]} Bb4 {[%emt 0:00:28]} 59. Nf6+ {[%emt 0:00:08]} Ke6 {[%emt 0:00:16]} 60. Ne4 {[%emt 0:00:49]} Kf5 {[%emt 0:00:28]} 61. Nf2 {[%emt 0:01:36]} Rc4 {[%emt 0:01:58]} 62. Ne4 {[%emt 0:00:56]} Bc5 {[%emt 0:00:43]} 63. Ng5 {[%emt 0:05:05]} Rc3+ {[%emt 0:00:37]} 64. Kg2 {[%emt 0:00:18]} Bd4 {[%emt 0:01:22]} 65. Ne4 {[%emt 0:01:07]} Re3 {[%emt 0:00:31]} 66. Rxe3 {[%emt 0:00:08]} Bxe3 {[%emt 0:00:02]} 67. Kf3 {[%emt 0:00:16]} Bd4 {[%emt 0:00:21]} 68. Nd6+ {[%emt 0:00:26]} Ke6 {[%emt 0:00:41]} 69. Ne4 {[%emt 0:00:07]} Bb6 {[%emt 0:00:37]} 70. Ng5+ {[%emt 0:00:10]} Kd5 {[%emt 0:00:37]} 71. Ne4 {[%emt 0:00:29]} Kd4 {[%emt 0:00:31]} 72. Ng5 {[%emt 0:01:08]} Kd3 {[%emt 0:00:31]} 73. Ne4 {[%emt 0:00:24]} Be3 {[%emt 0:00:40]} 74. Nf6 {[%emt 0:00:56]} g5 {[%emt 0:00:57]} 75. hxg5 {[%emt 0:01:02]} Bxg5 {[%emt 0:00:03]} 76. Ne4 {[%emt 0:00:22]} Be7 {[%emt 0:00:31]} 1/2-1/2

[Event "Niedersachsen-ch A 2024"]
[Site "Verden Aller"]
[Date "2024.01.06"]
[Round "5.20"]
[White "Ehlert, Horst"]
[Black "Schramm, Kilian"]
[Result "1/2-1/2"]
[ECO "D03"]
[WhiteElo "1940"]
[BlackElo "1729"]
[Annotator "NA RC"]
[PlyCount "86"]
[EventDate "2024.01.01"]
[EventType "swiss"]
[EventCountry "GER"]
[SourceTitle "playchess.com"]
[Source "ChessBase"]
[SourceQuality "1"]
[TimeControl "40/5400+30:1800+30"]

1. Nf3 {[%emt 0:02:56]} Nf6 {[%emt 0:00:13]} 2. d4 {[%emt 0:00:21]} e6 {[%emt 0:00:04]} 3. Bg5 {[%emt 0:00:28]} d5 {[%emt 0:01:06]} 4. e3 {[%emt 0:05:02]} Be7 {[%emt 0:01:50]} 5. Bd3 {[%emt 0:01:09]} Nbd7 {[%emt 0:03:09]} 6. Nbd2 {[%emt 0:01:36]} b6 {[%emt 0:01:53]} 7. Qe2 {[%emt 0:08:29]} Bb7 {[%emt 0:00:31]} 8. e4 {[%emt 0:04:31]} dxe4 {[%emt 0:00:13]} 9. Nxe4 {[%emt 0:00:12]} Nxe4 {[%emt 0:05:37]} 10. Bxe7 {[%emt 0:01:36]} Qxe7 {[%emt 0:00:08]} 11. Bxe4 {[%emt 0:00:14]} Bxe4 {[%emt 0:00:18]} 12. Qxe4 {[%emt 0:00:28]} O-O {[%emt 0:00:08]} 13. c3 {[%emt 0:01:20]} c5 {[%emt 0:00:26]} 14. O-O {[%emt 0:00:22]} cxd4 {[%emt 0:00:23]} 15. Nxd4 {[%emt 0:00:20]} Nf6 {[%emt 0:01:01]} 16. Qf3 {[%emt 0:01:37]} Rac8 {[%emt 0:00:38]} 17. Rad1 {[%emt 0:02:08]} Rc5 {[%emt 0:00:28]} 18. Rfe1 {[%emt 0:03:48]} Qc7 {[%emt 0:03:00]} 19. h3 {[%emt 0:05:34]} e5 {[%emt 0:06:05]} 20. Nf5 {[%emt 0:15:38]} e4 {[%emt 0:00:44]} 21. Qg3 {[%emt 0:04:26]} Qxg3 {[%emt 0:02:02]} 22. Nxg3 {[%emt 0:01:11]} Re5 {[%emt 0:04:22]} 23. Rd4 {[%emt 0:09:30]} Rfe8 {[%emt 0:00:26]} 24. Red1 {[%emt 0:04:18]} g5 {[%emt 0:03:38]} 25. Rd8 {[%emt 0:00:43]} Kg7 {[%emt 0:01:02]} 26. Rxe8 {[%emt 0:00:30]} Rxe8 {[%emt 0:00:07]} 27. Nf5+ {[%emt 0:02:34]} Kg6 {[%emt 0:00:09]} 28. Ne3 {[%emt 0:00:05]} Re6 {[%emt 0:02:57]} 29. g4 {[%emt 0:02:13]} h5 {[%emt 0:06:10]} 30. Rd8 {[%emt 0:00:52]} Re8 {[%emt 0:01:07]} 31. Rd6 {[%emt 0:01:16]} Re6 {[%emt 0:00:09]} 32. Rxe6 {[%emt 0:21:03]} fxe6 {[%emt 0:00:09]} 33. Kg2 {[%emt 0:00:00]} hxg4 {[%emt 0:00:37]} 34. hxg4 {[%emt 0:00:00]} Nd5 {[%emt 0:00:20]} 35. c4 {[%emt 0:00:00]} Nf4+ {[%emt 0:00:43]} 36. Kf1 {[%emt 0:00:00]} Kf6 {[%emt 0:00:25]} 37. b4 {[%emt 0:00:00]} Nd3 {[%emt 0:01:56]} 38. a3 {[%emt 0:00:00]} Ke5 {[%emt 0:01:05]} 39. Nc2 {[%emt 0:00:00]} Kf4 {[%emt 0:00:57]} 40. Nd4 {[%emt 0:00:00]} Kxg4 {[%emt 0:00:37]} 41. Nxe6 {[%emt 0:29:16]} Kf5 {[%emt 0:31:36]} 42. Nd4+ {[%emt 0:00:32]} Kf4 {[%emt 0:09:28]} 43. Ne6+ {[%emt 0:03:29]} Kf5 {[%emt 0:05:29]} 1/2-1/2

[Event "Niedersachsen-ch A 2024"]
[Site "Verden Aller"]
[Date "2024.01.06"]
[Round "5.21"]
[White "Gottschalk, Siegfried"]
[Black "Moeller, Jonas"]
[Result "1/2-1/2"]
[ECO "E52"]
[WhiteElo "1939"]
[BlackElo "1836"]
[Annotator "NA RC"]
[PlyCount "72"]
[EventDate "2024.01.01"]
[EventType "swiss"]
[EventCountry "GER"]
[SourceTitle "playchess.com"]
[Source "ChessBase"]
[SourceQuality "1"]
[TimeControl "40/5400+30:1800+30"]

1. d4 {[%emt 0:00:02]} Nf6 {[%emt 0:00:04]} 2. c4 {[%emt 0:00:10]} e6 {[%emt 0:00:04]} 3. Nc3 {[%emt 0:00:05]} Bb4 {[%emt 0:00:02]} 4. e3 {[%emt 0:00:22]} O-O {[%emt 0:00:13]} 5. Bd2 {[%emt 0:00:20]} d5 {[%emt 0:00:39]} 6. Nf3 {[%emt 0:00:19]} b6 {[%emt 0:12:18]} 7. cxd5 {[%emt 0:01:01]} exd5 {[%emt 0:00:12]} 8. Rc1 {[%emt 0:01:03]} Bb7 {[%emt 0:08:49]} 9. Bd3 {[%emt 0:01:43]} c5 {[%emt 0:17:22]} 10. a3 {[%emt 0:06:06]} Bxc3 {[%emt 0:01:04]} 11. Bxc3 {[%emt 0:00:54]} Nbd7 {[%emt 0:02:09]} 12. O-O {[%emt 0:03:39]} Ne4 {[%emt 0:08:07]} 13. b3 {[%emt 0:16:02]} Nxc3 {[%emt 0:14:48]} 14. Rxc3 {[%emt 0:00:20]} Qe7 {[%emt 0:00:33]} 15. Qb1 {[%emt 0:08:33]} Nf6 {[%emt 0:03:58]} 16. Qb2 {[%emt 0:07:34]} Rac8 {[%emt 0:13:01]} 17. Rc2 {[%emt 0:18:05]} Rfd8 {[%emt 0:03:40]} 18. Rfc1 {[%emt 0:01:58]} g6 {[%emt 0:03:02]} 19. Bf1 {[%emt 0:10:27]} Ne8 {[%emt 0:05:19]} 20. h3 {[%emt 0:06:23]} Rc7 {[%emt 0:00:33]} 21. Ne5 {[%emt 0:01:49]} f6 {[%emt 0:01:12]} 22. Nf3 {[%emt 0:01:42]} Rdc8 {[%emt 0:00:16]} 23. Be2 {[%emt 0:02:11]} Nd6 {[%emt 0:00:48]} 24. Nd2 {[%emt 0:01:54]} Nf5 {[%emt 0:00:56]} 25. Bg4 {[%emt 0:00:59]} Qe6 {[%emt 0:01:18]} 26. Nf1 {[%emt 0:01:59]} h5 {[%emt 0:00:17]} 27. Bxf5 {[%emt 0:00:19]} Qxf5 {[%emt 0:00:01]} 28. Ng3 {[%emt 0:00:32]} Qe6 {[%emt 0:00:23]} 29. Ne2 {[%emt 0:00:20]} Qf7 {[%emt 0:00:35]} 30. Nc3 {[%emt 0:03:14]} cxd4 {[%emt 0:01:45]} 31. exd4 {[%emt 0:00:06]} Ba6 {[%emt 0:00:33]} 32. Nd1 {[%emt 0:00:46]} Bd3 {[%emt 0:00:50]} 33. Rxc7 {[%emt 0:01:13]} Rxc7 {[%emt 0:00:01]} 34. Rxc7 {[%emt 0:00:01]} Qxc7 {[%emt 0:00:07]} 35. Ne3 {[%emt 0:02:42]} Qc6 {[%emt 0:00:54]} 36. Qd2 {[%emt 0:00:41]} Ba6 {[%emt 0:00:57]} 1/2-1/2

[Event "Niedersachsen-ch A 2024"]
[Site "Verden Aller"]
[Date "2024.01.06"]
[Round "5.22"]
[White "Heirich, Andreas"]
[Black "Carsten, Juergen"]
[Result "1/2-1/2"]
[ECO "D45"]
[WhiteElo "1925"]
[BlackElo "1749"]
[Annotator "NA RC"]
[PlyCount "40"]
[EventDate "2024.01.01"]
[EventType "swiss"]
[EventCountry "GER"]
[SourceTitle "playchess.com"]
[Source "ChessBase"]
[SourceQuality "1"]
[TimeControl "40/5400+30:1800+30"]

1. d4 {[%emt 0:00:03]} d5 {[%emt 0:00:24]} 2. c4 {[%emt 0:00:10]} e6 {[%emt 0:00:14]} 3. Nc3 {[%emt 0:00:15]} c6 {[%emt 0:00:28]} 4. e3 {[%emt 0:02:31]} Bd6 {[%emt 0:00:24]} 5. Nf3 {[%emt 0:00:18]} Nf6 {[%emt 0:02:27]} 6. Be2 {[%emt 0:00:17]} Nbd7 {[%emt 0:01:45]} 7. O-O {[%emt 0:00:23]} Qe7 {[%emt 0:00:40]} 8. c5 {[%emt 0:01:24]} Bc7 {[%emt 0:00:44]} 9. b4 {[%emt 0:00:14]} e5 {[%emt 0:00:16]} 10. dxe5 {[%emt 0:00:30]} Nxe5 {[%emt 0:00:22]} 11. Bb2 {[%emt 0:02:10]} O-O {[%emt 0:08:40]} 12. Nb1 {[%emt 0:08:11]} Nxf3+ {[%emt 0:02:45]} 13. Bxf3 {[%emt 0:00:46]} Ne4 {[%emt 0:08:01]} 14. g3 {[%emt 0:05:48]} f5 {[%emt 0:01:40]} 15. Nd2 {[%emt 0:01:15]} Qg5 {[%emt 0:07:07]} 16. Bg2 {[%emt 0:02:24]} Be6 {[%emt 0:05:36]} 17. Nf3 {[%emt 0:02:14]} Qe7 {[%emt 0:01:14]} 18. Nd4 {[%emt 0:02:10]} Bd7 {[%emt 0:00:45]} 19. Nf3 {[%emt 0:02:14]} Rad8 {[%emt 0:01:19]} 20. Bd4 {[%emt 0:06:37]} Bc8 {[%emt 0:01:00]} 1/2-1/2